{"text_format":"3","workbook":"xlsx","n_sheets":2,"sheets":["COMO USAR ESTA PASTA DE TRABALH","BOLETIM"],"not_rendered":{"defined_names":5},"read":"whole","date_system":"1900"}

{"sheet":"COMO USAR ESTA PASTA DE TRABALH","index":0,"n_rows":10,"n_cols":2,"rows_kept":10}
[null,"INSTRUÇÕES"]
[null,"Use a planilha boletim para calcular notas. Cada tarefa vale um número definido de pontos. "]
[null,"Instruções: Certifique-se de salvar cópias de backup de suas notas."]
[null,"1. Preencha o nome da escola, informações da classe, os nomes dos alunos e IDs do aluno (opcionais). "]
[null,"2. Ajuste a tabela de notas e médias para coincidir com o sistema de pontuação típico que você usar."]
[null,"3. Preencha a atribuição ou nomes de teste iniciando na célula G7, juntamente com a porcentagem que cada um vale (por exemplo \"Final\" e \"50%\"). "]
[null,"4. Preencha os resultados para cada aluno em cada tarefa ou um teste. As colunas \"Pontuação\", \"Nota Ltr\" e \"Médias\" são calculadas automaticamente, mas você pode substituí-las se desejar. A maneira como as notas são calculadas, a nota e média final são incompletas até todos os pontos serem inseridos."]
[null,"Use o comando \"Área de impressão\" no menu de Layout da página se você quiser alterar qual área imprimir."]
[null,"Pontuação, nota Ltr e Médias não são válidos até 100% dos testes e tarefas sejam concluídos. "]
[null,"Insira cada tarefa ou teste e o percentual do total de notas nas células G7 a W8."]

{"sheet":"BOLETIM","index":1,"n_rows":20,"n_cols":23,"rows_kept":20,"merged":[[5,1,5,5],[6,1,6,3],[6,4,6,5],[7,1,8,3],[7,4,7,5],[8,4,8,5],[16,1,16,2],[17,1,17,2],[18,1,18,2],[19,1,19,2]]}
[null,"Colégio Upper Talbot"]
[]
[{"$nulls":6},"Pontuação",{"v":0,"d":"0%"},{"v":0.6,"d":"60%"},{"v":0.63,"d":"63%"},{"v":0.67,"d":"67%"},{"v":0.7,"d":"70%"},{"v":0.73,"d":"73%"},{"v":0.77,"d":"77%"},{"v":0.8,"d":"80%"},{"v":0.83,"d":"83%"},{"v":0.87,"d":"87%"},{"v":0.9,"d":"90%"},{"v":0.93,"d":"93%"},{"v":0.97,"d":"97%"}]
[{"$nulls":6},"Nota Ltr","F","D-","D","D+","C-","C","C+","B-","B","B+","A-","A","A+"]
[{"$nulls":6},"MÉDIAS",0,0.67,1,1.33,1.67,2,2.33,2.67,3,3.33,3.67,4,4]
[null,"Ayano Harada"]
[null,"História Mundial II",null,null,"Tarefa"]
[null,"Último trimestre de 2023",null,null,"Porcentagem (deve totalizar 100%)"]
[{"$nulls":4},{"$f":"\"Total percentage: \"&SUM(G8:BZ8)*100&\"%\"","v":"Total percentage: 0%"}]
[null,"Nome do(a) aluno(a)","ID do Aluno","Pontuação","Nota Ltr","MÉDIAS","Column6","Column7","Column8","Column9","Column10","Column11","Column12","Column13","Column14","Column15","Column16","Column17","Column18","Column19","Column20","Column21","Column22"]
[null,"Gianni Castiglione",654987,{"$f":"(IF(SUM(Notas[[#This Row],[Column6]:[Column22]]),ROUND(SUMPRODUCT($G$8:$W$8,Notas[[#This Row],[Column6]:[Column22]]),2),\"\"))","v":""},{"$f":"IF(Notas[[#This Row],[Pontuação]]<>\"\",HLOOKUP(Notas[[#This Row],[Pontuação]],TabelaNotas,2),\"\")","v":""},{"$f":"IF(Notas[[#This Row],[Pontuação]]<>\"\",HLOOKUP(Notas[[#This Row],[Pontuação]],TabelaNotas,3),\"\")","v":""}]
[null,"Leila Gonçalves",134698,{"$f":"(IF(SUM(Notas[[#This Row],[Column6]:[Column22]]),ROUND(SUMPRODUCT($G$8:$W$8,Notas[[#This Row],[Column6]:[Column22]]),2),\"\"))","v":""},{"$f":"IF(Notas[[#This Row],[Pontuação]]<>\"\",HLOOKUP(Notas[[#This Row],[Pontuação]],TabelaNotas,2),\"\")","v":""},{"$f":"IF(Notas[[#This Row],[Pontuação]]<>\"\",HLOOKUP(Notas[[#This Row],[Pontuação]],TabelaNotas,3),\"\")","v":""}]
[null,"Juan Morgan",613467,{"$f":"(IF(SUM(Notas[[#This Row],[Column6]:[Column22]]),ROUND(SUMPRODUCT($G$8:$W$8,Notas[[#This Row],[Column6]:[Column22]]),2),\"\"))","v":""},{"$f":"IF(Notas[[#This Row],[Pontuação]]<>\"\",HLOOKUP(Notas[[#This Row],[Pontuação]],TabelaNotas,2),\"\")","v":""},{"$f":"IF(Notas[[#This Row],[Pontuação]]<>\"\",HLOOKUP(Notas[[#This Row],[Pontuação]],TabelaNotas,3),\"\")","v":""}]
[{"$nulls":3},{"$f":"(IF(SUM(Notas[[#This Row],[Column6]:[Column22]]),ROUND(SUMPRODUCT($G$8:$W$8,Notas[[#This Row],[Column6]:[Column22]]),2),\"\"))","v":""},{"$f":"IF(Notas[[#This Row],[Pontuação]]<>\"\",HLOOKUP(Notas[[#This Row],[Pontuação]],TabelaNotas,2),\"\")","v":""},{"$f":"IF(Notas[[#This Row],[Pontuação]]<>\"\",HLOOKUP(Notas[[#This Row],[Pontuação]],TabelaNotas,3),\"\")","v":""}]
[{"$nulls":3},{"$f":"(IF(SUM(Notas[[#This Row],[Column6]:[Column22]]),ROUND(SUMPRODUCT($G$8:$W$8,Notas[[#This Row],[Column6]:[Column22]]),2),\"\"))","v":""},{"$f":"IF(Notas[[#This Row],[Pontuação]]<>\"\",HLOOKUP(Notas[[#This Row],[Pontuação]],TabelaNotas,2),\"\")","v":""},{"$f":"IF(Notas[[#This Row],[Pontuação]]<>\"\",HLOOKUP(Notas[[#This Row],[Pontuação]],TabelaNotas,3),\"\")","v":""}]
[]
[null,"Resumo da Classe",null,"Pontuação","Nota Ltr","MÉDIAS","","","","","","","","","","",""]
[null," Média",null,{"$f":"IFERROR(AVERAGE(Notas[[#All],[Pontuação]]),0)","v":{"v":0,"d":"0.0%"}},{"$f":"IFERROR(HLOOKUP(D18,TabelaNotas,2),\"\")","v":"F"},{"$f":"IFERROR(AVERAGE(Notas[[#All],[MÉDIAS]]),0)","v":0},"","","","","","","","","","","","","","","","",""]
[null," Pontuação maior",null,{"$f":"IFERROR(MAX(Notas[[#All],[Pontuação]]),0)","v":{"v":0,"d":"0.0%"}},{"$f":"IFERROR(HLOOKUP(D19,TabelaNotas,2),\"\")","v":"F"},{"$f":"IFERROR(MAX(Notas[[#All],[MÉDIAS]]),0)","v":0},"","","","","","","","","","","","","","","","",""]
[null," Pontuação mais baixa",null,{"$f":"IFERROR(MIN(Notas[[#All],[Pontuação]]),0)","v":{"v":0,"d":"0.0%"}},{"$f":"IFERROR(HLOOKUP(D20,TabelaNotas,2),\"\")","v":"F"},{"$f":"IFERROR(MIN(Notas[[#All],[MÉDIAS]]),0)","v":0},"","","","","","","","","","","","","","","","",""]